Cogmind - Beta 14 @@@ ROGUE MODE // 2024.09.15 @ 12:39:38 Player: Dull Result: Destroyed by G-47 Trooper with Particle Gun Performance ------------- Evolutions (0) 0 Regions Visited (1) 200 Robots Destroyed (10) 50 Value Destroyed (361) 361 Prototype IDs (0) 0 Alien Tech Used (0) 0 Bonus (0) 0 TOTAL SCORE: 611 Bonus ------- None Cogmind --------- Core Integrity 0/250 Matter 300/300 Energy 87/100 System Corruption 2% Temperature Cool (9) Movement Core (400) Ox7 Location -10/Materials Parts ------- > --- POWER (1) -------- (None) > --- PROPULSION (2) --- (None) > --- UTILITY (2) ------ Heat Sink Large Storage Unit > --- WEAPON (2) ------- Light Cannon > --- INVENTORY (15) --- Ion Engine Aluminum Leg Aluminum Leg Compact Wheel Compact Wheel Hover Unit EM Pulse Gun Peak State ------------ > --- POWER ------------ Ion Engine > --- PROPULSION ------- Light Treads Light Treads > --- UTILITY ---------- Small Storage Unit Terrain Scanner > --- WEAPON ----------- EM Pulse Gun Assault Rifle > --- INVENTORY -------- Ion Engine Aluminum Leg Aluminum Leg Compact Wheel Compact Wheel Medium Laser [Rating: 7] Favorites ----------- Power Ion Engine Engine Ion Engine Propulsion Light Treads Treads Light Treads Leg Aluminum Leg Utility Small Storage Unit Device Heat Sink Storage Small Storage Unit Weapon Medium Laser Energy Gun Medium Laser Ballistic Gun Assault Rifle Ballistic Cannon Light Cannon Build | -11 -10 ------- Run | Yrd Mat Slots Evolved . | . . Power . | . . Propulsion . | . . Utility . | . . Weapon . | . . Parts Attached 8 | . 8 Power . | . . Engine . | . . Core . | . . Reactor . | . . Propulsion 2 | . 2 Treads 2 | . 2 Leg . | . . Wheel . | . . Hover . | . . Flight . | . . Utility 4 | . 4 Device 3 | . 3 Storage 1 | . 1 Processor . | . . Hackware . | . . Protection . | . . Artifact . | . . Weapon 2 | . 2 Energy Gun 1 | . 1 Energy Cannon . | . . Ballistic Gun . | . . Ballistic Cannon 1 | . 1 Launcher . | . . Special Weapon . | . . Impact Weapon . | . . Slashing Weapon . | . . Piercing Weapon . | . . Special Melee Weapon . | . . Unidentified Prototypes . | . . Parts Lost 5 | . 5 Power 1 | . 1 Propulsion 2 | . 2 Utility 1 | . 1 Weapon 1 | . 1 Highest Loss Streak 4 | . 4 To Critical Strikes . | . . Average Slot Usage (%) 94 | . 94 Engine 13 | . 13 Treads 26 | . 26 Device 10 | . 10 Storage 14 | . 14 Energy Gun 13 | . 13 Ballistic Gun 7 | . 7 Ballistic Cannon 6 | . 6 Peak Build Rating 7 | . 7 Average Rating 6 | . 6 On Entrance 6 | 6 6 Naked Turns . | . . Heaviest Build 31 | 14 31 Greatest Support 40 | 20 40 Greatest Overweight (x) 1 | . 1 Average Overweight (x) . | . . Largest Inventory Capacity 15 | . 15 Average Capacity 10 | . 10 Most Carried 8 | . 8 Average Carried 6 | . 6 Final Capacity 15 | 8 15 Final Carried 7 | 6 7 Class Distribution -------------------- 100% | Mutant Dominant Class ---------------- Mutant | -10/Materials Resources | -11 -10 ----------- Run | Yrd Mat Matter Collected 393 | 200 193 Remotely . | . . Salvage Created 405 | . 405 Parts 13 | . 13 Haulers Intercepted . | . . Recyclers Shooed . | . . Parts Field Recycled . | . . Retrieved Matter . | . . Parts Self-Destructed . | . . Prevented . | . . Kills | -11 -10 ------- Run | Yrd Mat Combat Hostiles Destroyed 9 | . 9 Guns 8 | . 8 Cannons 1 | . 1 Classes Destroyed 2 | . 2 Watcher 1 | . 1 Grunt 9 | . 9 Best Kill Streak 7 | . 7 Combat Bots Only 7 | . 7 Max Kills in Single Turn 1 | . 1 Gunslinging . | . . Exploded . | . . Melee . | . . Uniques/NPCs Destroyed . | . . Combat | -11 -10 -------- Run | Yrd Mat Hostile Shots Fired 102 | . 102 Missed 28 | . 28 Damage Taken 928 | . 928 Core 260 | . 260 Absorbed by Shields . | . . Core Remaining (%) 100 | 100 . Volleys Fired 38 | . 38 Largest 2 | . 2 Hottest 85 | . 85 Shots Fired 76 | . 76 Gun 72 | . 72 Cannon 4 | . 4 Launcher . | . . Special . | . . Kinetic 38 | . 38 Thermal 37 | . 37 Explosive . | . . Electromagnetic 1 | . 1 Robot Hit Streak 9 | . 9 Robot Miss Streak 4 | . 4 Penetration Max . | . . Secondary Targets . | . . Shots Hit Robots 52 | . 52 Core Hits 21 | . 21 Critical Kills . | . . Critical Parts Destroyed . | . . Critical Strikes 2 | . 2 Burn 2 | . 2 Melee Attacks . | . . Impact . | . . Slashing . | . . Piercing . | . . Sneak Attacks . | . . Combat Hostiles . | . . Follow-up Attacks . | . . Damage Inflicted 723 | . 723 Guns 625 | . 625 Cannons 54 | . 54 Explosions . | . . Melee . | . . Ramming 44 | . 44 Kinetic 348 | . 348 Thermal 311 | . 311 Explosive . | . . Electromagnetic 20 | . 20 Impact . | . . Slashing . | . . Piercing . | . . Highest Corruption 2 | . 2 Average Corruption 2 | . 2 Corruption Purged . | . . Corruption Blocked . | . . Effects 1 | . 1 Energy Discharges 1 | . 1 Overload Shots . | . . Overflow Damage . | . . Projectiles . | . . Explosions . | . . Melee . | . . Knockbacks . | . . Impact . | . . Kinetic . | . . Secondary . | . . Self-Inflicted Damage . | . . Shots . | . . Rammed 17 | . 17 Targets Rammed 17 | . 17 Kicked . | . . Crushed . | . . Highest Temperature 363 | . 363 Average Temperature 148 | . 148 Received Heat Transfer 564 | . 564 Effects 1 | . 1 Energy Bleed 1 | . 1 Siege Activations . | . . Robots Corrupted . | . . Combat Hostiles . | . . Parts Fried . | . . Impact Corruptions . | . . Robots Melted . | . . Combat Hostiles . | . . Parts Melted 3 | . 3 Heat Transferred 1073 | . 1073 Parts Sabotaged . | . . Parts Stolen . | . . Parts Stripped . | . . Power Chain Reactions . | . . Alert | -11 -10 ------- Run | Yrd Mat Peak Influence 242 | . 242 Initial . | . . Average 119 | . 119 Maximum Alert Level 1 | . 1 Low Security (%) 71 | . 71 Level 1 28 | . 28 Level 2 . | . . Level 3 . | . . Level 4 . | . . Level 5 . | . . High Security . | . . Max Security . | . . Squads Dispatched 1 | . 1 Investigation 1 | . 1 Extermination . | . . Reinforcement . | . . Assault . | . . Garrison . | . . Intercept . | . . Searches Triggered . | . . Construction Impeded . | . . Haulers Reinforced . | . . Active Scanning Responses . | . . Cargo Convoy Interrupts . | . . Stealth | -11 -10 --------- Run | Yrd Mat Distress Signals . | . . Communications Jammed . | . . Distress Signals . | . . Times Spotted 17 | . 17 Peak Tracking Total 5 | . 5 Tactical Retreats . | . . Traps | -11 -10 ------- Run | Yrd Mat Traps Triggered 1 | . 1 Indirectly . | . . Trap Hack Attempts . | . . Triggered . | . . Disarmed . | . . Reprogrammed . | . . Reused . | . . Traps Extracted . | . . Installed . | . . Triggered . | . . Machines | -11 -10 ---------- Run | Yrd Mat Machines Disabled . | . . Max in Single Turn . | . . Machines Repaired . | . . Machines Dismantled . | . . Machines Sabotaged . | . . Overloaded Fab Kills . | . . Hacking | -11 -10 --------- Run | Yrd Mat Machines Accessed 1 | . 1 Terminals 1 | . 1 Fabricators . | . . Repair Stations . | . . Recycling Units . | . . Scanalyzers . | . . Garrison Access . | . . Total Hacks 1 | . 1 Successful . | . . Failed 1 | . 1 Catastrophic 1 | . 1 Database Lockouts . | . . Manual 1 | . 1 Terminals 1 | . 1 Fabricators . | . . Repair Stations . | . . Recycling Units . | . . Scanalyzers . | . . Garrison Access . | . . Terminal Hacks . | . . Fabricator Hacks . | . . Repair Station Hacks . | . . Recycling Unit Hacks . | . . Scanalyzer . | . . Garrison Access Hacks . | . . Unauthorized Hacks . | . . Terminals . | . . Fabricators . | . . Repair Stations . | . . Recycling Units . | . . Scanalyzers . | . . Garrison Access . | . . Data Cores Recovered . | . . Used . | . . Hacking Detections 1 | . 1 Full Trace Events . | . . Feedback Events . | . . Feedback Blocked . | . . Robot Schematics Acquired . | . . Robots Built . | . . Authchips . | . . Time . | . . Total Robot Build Rating . | . . Part Schematics Acquired . | . . Parts Built . | . . Authchips . | . . Time . | . . Total Part Build Rating . | . . Parts Repaired . | . . Time . | . . Parts Recycled . | . . Recycled Matter . | . . Retrieved Matter . | . . Retrieved Components . | . . Parts Scanalyzed . | . . Part Schematics Acquired . | . . Parts Damaged . | . . Bothacking | -11 -10 ------------ Run | Yrd Mat Used RIF Installer . | . . Robots Hacked . | . . Non-combat . | . . Combat . | . . Robot Hacks Applied . | . . Relay Couplers Released . | . . Fabnet Peak Effective % . | . . Robots Rewired . | . . Allies Hacked . | . . Hacks Repelled . | . . Allies | -11 -10 -------- Run | Yrd Mat Total Allies . | . . Largest Group . | . . Highest-Rated Group . | . . Highest-Rated Ally . | . . Total Orders . | . . Ally Attacks . | . . Total Damage . | . . Kills . | . . Allies Corrupted . | . . Allies Melted . | . . Intel | -11 -10 ------- Run | Yrd Mat Robot Analysis Total . | . . Derelict Logs Recovered . | . . Drone Launches . | . . Drone Recoveries . | . . Exploration | -11 -10 ------------- Run | Yrd Mat Turns Passed 473 | . 473 Spaces Moved 187 | 1 186 Core . | . . Treads 186 | . 186 Legs 1 | 1 . Wheels . | . . Hover . | . . Flight . | . . Fastest Speed 120 | 120 160 Average Speed 160 | 120 160 Slowest Speed 240 | 120 240 Overloaded Moves . | . . Propulsion Burnouts . | . . Robots Hopped . | . . Cave-ins Triggered . | . . Exploration Rate (%) 20 | 2 39 Regions Visited 1 Branch Regions . Pre-discovered Areas . | . . Known Exits Taken . | . . Unknown Exits Taken 1 | 1 . Scrap Searched . | . . Spaces Dug . | . . Terrain Destroyed . | . . Melee . | . . Projectile . | . . AOE . | . . Terrain Rammed . | . . Walls Destroyed . | . . Machines Disabled . | . . Actions | -11 -10 --------- Run | Yrd Mat Total 261 | . 261 Wait 10 | . 10 Move 186 | . 186 Hop . | . . Pick Up 1 | . 1 Fast Attach 2 | . 2 Attach . | . . Detach . | . . Swap 6 | . 6 Drop 1 | . 1 Fire 38 | . 38 Melee . | . . Ram 3 | . 3 Kick . | . . Crush 14 | . 14 Escape Stasis . | . . Rewire . | . . Trap . | . . Miscellaneous . | . . Route ------- -11/Scrapyard -10/Materials (discovered 1 exit: [*Min]) History --------- Turn | Location | Event 1 | -11/Scrapyard | Discovered new exit (range 0) 1 | -11/Scrapyard | Entered Materials 230 | -10/Materials | Destroyed 7 combat bots 331 | -10/Materials | Build established: Mutant 343 | -10/Materials | Discovered new exit (range 15) 438 | -10/Materials | Core integrity fell below 50% 468 | -10/Materials | Core integrity fell below 20% 474 | -10/Materials | Destroyed by G-47 Trooper with Particle Gun Last Messages --------------- 00430_ Slammed into G-47 Trooper. 00432_ Slammed into G-34 Mercenary. 00435_ Slammed into G-47 Trooper. 00440_ Slammed into G-34 Mercenary. 00446_ Critical hit (Burn: +37). 00447_ Lgt. Treads destroyed. 00450_ Slammed into G-47 Trooper. 00453_ Med. Laser destroyed. 00453_ Slammed into G-47 Trooper. 00462_ Ion Engine destroyed. 00462_ Slammed into G-47 Trooper. 00465_ Lgt. Treads destroyed. 00465_ Slammed into G-47 Trooper. 00465_ Destabilizing: System corrupted (+2). 00468_ Critical hit (Burn: +37). 00469_ Slammed into G-47 Trooper. 00470_ System corrupted: Energy discharge (-29). 00473_ Slammed into G-47 Trooper. 00473_ Lgt. Cannon broken. 00473_ Destabilizing: Short circuit. Map ----- +----------------------------------------------------+ | ?# #??# #?#! + # | | ?# ##?# ! #?#### # # | | ?# #?## #???## ######? | | ?# #######+####### #????? | | ## T" #????? | | # " #????? | | =# #????? | | %+= #####+#+####### #????? | | [#% #???# #??## ####### | | # #??## #???# # # | | ## #???# #???# + """ # | | ?# #???# ! #???# # """ # | | ## #???# #???# # """ # | | ## #???# ! #???# # """ # | | ## #???########???# # """ # | | ## #??????????????# + # | | ## #??????????????# # # | | ## ##?#???????????# ####### | | # #??#??????######k######## | | # #?????????# # | | / #?????????# """# | | # #?????????# """ """ R"# | | # #?????????# """ """ """# | | #######?????????# """ """% # | | #???????????????# %%g= # | | #???????????????#########@##### | | ????????????????????????#*#???? | | ????????????????????????#[#???? | | ????????????????????????#%##??? | | ????????????????????????#=T#??? | | ????????????????????????#%##??? | | ????????????????????????#%#???? | | ????????????????????????#%#???? | | ????????????????????????#%#???? | | ??????????????###+###+###%#???? | | ??????????????# %%#???? | | ?????????? [ + %#???? | | ?????????? # """ g#???? | | ???????????????? """ #???? | | ???????????????? """ #???? | | ???????????????? ##+#???? | | ??????????????? ?? ????? | | ??????????????# ?? ????? | | ??????????????###### ????????? | | ???????????????????# ????????? | | ???????????????????# ????????? | | ???????????????????# ?????????? | | ???????????????????#??????????? | | ??????????????????????????????? | | ??????????????????????????????? | +----------------------------------------------------+ Best States ------------- Heat Dissipation 35 Energy Generation 10 Energy Capacity 250 Matter Stores 300 Matter Capacity 300 Sight Range 16 Terrain Scan Range 14 Terrain Scan Density 10 Evasion (%) 40 Recoil Reduction 2 Item Schematics ----------------- None Robot Schematics ------------------ None Fabricated ------------ Nothing Alien Tech Used ----------------- None Achievements -------------- None Challenges ------------ None Game ------ Seed MassPropulsionThermoblaster Manual? 0 Play Time 00:05:28 Cumulative 82.6 hours Start 2024.09.15 @ 12:36:45 End 2024.09.15 @ 12:39:38 Sessions 1 Manual Loads 0 Difficulty Rogue Special Mode None Game No. 115 Rogue 115 Adventurer 0 Explorer 0 Win Type - Total 1 Types 1/0/0/0/0/0/0/0/0 Lore% 18 Gallery% 55 Achievement% 43 Wizard Run 0 Options --------- Layout 0 ASCII 0 Keyboard 0 Movement Mouse Keybinds 1 Fullscreen 1 Font 18/TerminusBold Map View 76x50 Zoom Use 0% Tactical HUD 1 Map Filters NONE Filters NONE Steam 1 RUN: 5ee8e558-fa3d-4dba-970c-9cb681a6c34d